fUSD/lending_fUSD_20250112
["ID","MTS","AMOUNT","RATE_DAILY","PERIOD"]
[348694100,1736721032367,-884.63,9.999e-05,2]
[348694101,1736721032379,-1106.57,9.999e-05,2]
[348694102,1736721032389,-500.0,9.999e-05,2]
[348694103,1736721032400,-1076.69,9.999e-05,2]
[348694104,1736721032413,-2449.12,9.999e-05,2]
[348694105,1736721032423,-500.0,9.999e-05,2]
[348694106,1736721032434,-1069.78,9.999e-05,2]
[348694107,1736721032445,-786.34,9.999e-05,2]
[348694108,1736721032456,-209.21,9.999e-05,2]
[348694109,1736721032467,-500.0,9.999e-05,2]
[348694110,1736721032479,-1215.35,9.999e-05,2]
[348694111,1736721032490,-584.84,9.999e-05,2]
[348694112,1736721032500,-500.0,9.999e-05,2]
[348694113,1736721032511,-500.0,9.999e-05,2]
[348694114,1736721032522,-500.0,9.999e-05,2]
[348694115,1736721032533,-547.19,9.999e-05,2]
[348694116,1736721032544,-663.17,9.999e-05,2]
[348694117,1736721032557,-500.0,9.999e-05,2]
[348694118,1736721032568,-574.38,9.999e-05,2]
[348694119,1736721032582,-500.0,9.999e-05,2]
[348694120,1736721032593,-500.0,9.999e-05,2]
[348694121,1736721032604,-500.0,9.999e-05,2]
[348694122,1736721032614,-719.24,9.999e-05,2]
[348694123,1736721032624,-500.0,9.999e-05,2]
[348694124,1736721032636,-500.0,9.999e-05,2]
[348694125,1736721032646,-500.0,9.999e-05,2]
[348694126,1736721032656,-380.74060403,9.999e-05,2]
[348694127,1736721032666,-411.39158693,9.999e-05,2]
[348694128,1736721032678,-449.24144614,9.999e-05,2]
[348694129,1736721032690,-1634.95596754,9.999e-05,2]
[348694130,1736721032702,-296.31,0.0001,2]
[348694131,1736721032712,-178.63,0.0001,2]
[348694132,1736721032721,-1239.04815461,0.0001,2]
[348694133,1736721032735,-12498.28316974,0.0001,2]
[348694134,1736721032746,-9990.78806453,0.0001,2]
[348694135,1736721032759,-2999.94044741,0.0001,2]
[348694136,1736721032771,-1350.31306839,0.0001,2]
[348694137,1736721032785,-1151.9322455,0.0001,2]
[348694138,1736721032799,-1675.425,0.0001,2]
[348694139,1736721032813,-780.56680012,0.0001,2]
[348694140,1736721032825,-3400.00000001,0.0001,2]
[348694141,1736721032845,-2063196.47459578,0.0001,2]
[348694142,1736721032860,-1943.98,0.0001,2]
[348694143,1736721032872,-39273.48123917,0.0001,2]
[348694144,1736721032888,-1633.06952951,0.0001,2]
[348694145,1736721032900,-576.33601208,0.0001,2]
[348694146,1736721032924,-1866.80167037,0.0001,2]
[348694147,1736721032937,-280.1605,0.0001,2]
[348694148,1736721032953,-834.6735,0.0001,2]
[348694149,1736721032974,-1183.89467393,0.0001,2]
[348694153,1736721037425,-500.0,9.999e-05,2]
[348694154,1736721037436,-500.0,9.999e-05,2]
[348694155,1736721037446,-5823.99999999,0.0001,2]
[348694156,1736721037459,-2360.73409,0.0001,2]
[348694157,1736721037471,-500.0,0.0001,2]
[348694158,1736721037484,-7052396.09683717,0.0001,2]
[348694159,1736721037495,-331.62505289,0.0001,2]
[348694160,1736721037505,-166.73794239,0.0001,2]
[348694161,1736721037515,-7312.62577763,0.0001,2]
[348694162,1736721037526,-874.38,0.0001,2]
[348694163,1736721037536,-150.0,0.0001,2]
[348694164,1736721037548,-150.0,0.0001,2]
[348694165,1736721037559,-150.0,0.0001,2]
[348694166,1736721037570,-1958.4,0.0001,2]
[348694167,1736721037581,-150.0,0.0001,2]
[348694168,1736721037592,-150.0,0.0001,2]
[348694169,1736721037602,-150.0,0.0001,2]
[348694170,1736721037613,-150.0,0.0001,2]
[348694171,1736721037623,-150.0,0.0001,2]
[348694172,1736721037635,-150.0,0.0001,2]
[348694173,1736721037645,-150.0,0.0001,2]
[348694174,1736721037655,-150.0,0.0001,2]
[348694175,1736721037665,-653.73425882,0.0001,2]
[348694176,1736721037676,-11028415.9607722,0.0001,2]
[348694177,1736721037689,-18637.49636733,0.0001,2]
[348694178,1736721037702,-106792.05429023,0.0001,2]
[348694179,1736721037714,-9384.70109715,0.0001,2]
[348694180,1736721037727,-1596.27522927,0.0001,2]
[348694181,1736721037742,-4865.79896752,0.0001,2]
[348694182,1736721037755,-2513.2158088,0.0001,2]
[348694183,1736721037769,-376.72392996,0.0001,2]
[348694184,1736721037793,-17544.88646173,0.0001,2]
[348694185,1736721037805,-9518.87006836,0.0001,2]
[348694186,1736721037817,-1363.83747749,0.0001,2]
[348694187,1736721037834,-1022.0,0.0001,2]
[348694188,1736721037846,-2374.24422636,0.0001,2]
[348694189,1736721037860,-1721.48259596,0.0001,2]
[348694190,1736721037885,-468.395,0.0001,2]
[348694192,1736721037898,-517.7691157,0.0001,2]
[348694194,1736721037910,-4000.0,0.0001,2]
[348694196,1736721037923,-339.00574695,0.0001,2]
[348694199,1736721037937,-303715.5663615,0.0001,2]
[348694203,1736721037966,-9231.53628286,0.0001,2]
[348694371,1736721039519,-2768.128,0.0001,2]
[348694374,1736721039531,-265.7675427,0.0001,2]
[348694393,1736721039703,-2931.81594404,0.0001,2]
[348694395,1736721039715,-1425.60811989,0.0001,2]
[348694396,1736721039805,-973.37332906,0.0001,2]
[348694397,1736721039816,-495.00000005,0.0001,2]
[348694400,1736721039831,-470.25,0.0001,2]
[348694402,1736721039843,-5773.17410045,0.0001,2]
[348694404,1736721039858,-1952.015212,0.0001,2]
[348694437,1736721040154,-3719.27464023,0.0001,2]
[348694443,1736721040202,-3529.65000033,0.0001,2]
[348694445,1736721040214,-4126.13424394,0.0001,2]
[348694694,1736721044082,-13624.54828251,9.9e-05,2]
[348694695,1736721044194,-7357.46811749,9.9e-05,2]
[348694696,1736721044204,-500.0,9.999e-05,2]
[348694697,1736721044213,-500.0,9.999e-05,2]
[348694698,1736721044223,-297406.74004299,0.0001,2]
[348694699,1736721044303,-7343.59442224,0.0001,2]
[348694703,1736721045427,-452.0208,9.999e-05,2]
[348694704,1736721045439,-47.9792,9.999e-05,2]
[348694705,1736721045449,-4193.84909066,0.0001,2]
[348694706,1736721045461,-1089.61648377,0.0001,2]
[348694707,1736721045472,-16020.74743192,0.0001,2]
[348694708,1736721045527,-105381.55304222,0.0001,2]
[348694709,1736721045539,-996.32490086,0.0001,2]
[348694710,1736721045550,-1037.011822,0.0001,2]
[348694711,1736721045562,-866.37474104,0.0001,2]
[348694712,1736721045574,-12532.46973317,0.0001,2]
[348694713,1736721045586,-7391.51999648,0.0001,2]
[348694714,1736721045598,-4366.0,0.0001,2]
[348694715,1736721045609,-60645.41610497,0.0001,2]
[348694716,1736721045621,-305.43471516,0.0001,2]
[348694717,1736721045639,-941.64847374,0.0001,2]
[348694718,1736721045650,-1065.83165509,0.0001,2]
[348694719,1736721045661,-1787.30255397,0.0001,2]
[348694720,1736721045700,-500.0,9.999e-05,2]
[348694721,1736721045709,-1903.90696494,0.0001,2]
[348694722,1736721045724,-721.22,0.0001,2]
[348694741,1736721304086,766.23,8.219e-05,2]
[348694742,1736721495894,152.69,0.000123,31]
[348694743,1736721495944,152.69,0.000123,31]
[348694744,1736721496000,152.69,0.000123,31]
[348694745,1736721496062,152.69,0.000123,31]
[348694746,1736721496120,152.69,0.000123,31]
[348694747,1736721496171,152.69,0.000123,31]
[348694748,1736721496327,152.69,0.000123,31]
[348694890,1736721541612,929.58164098,0.00023,120]
[348694891,1736721552371,300.26030014,0.0002,120]
[348694892,1736721669136,500.0,9.999e-05,7]
[348694894,1736722099156,152.71,0.000123,31]
[348694895,1736722099239,152.71,0.000123,31]
[348694896,1736722099336,152.71,0.000123,31]
[348694897,1736722099392,152.71,0.000123,31]
[348694898,1736722099452,152.71,0.000123,31]
[348694899,1736722099515,152.71,0.000123,31]
[348694900,1736722099577,152.71,0.000123,31]
[348694916,1736722191000,756.3,8.219e-05,2]
[348694918,1736722231776,-1000.0,9.003e-05,2]
[348694919,1736722231786,-194.28,9.003e-05,2]
[348694920,1736722231797,-153.62,9.339e-05,2]
[348694921,1736722231807,-250.0,9.371e-05,2]
[348694922,1736722231818,-150.30828921,9.565e-05,2]
[348694923,1736722231896,-1614.29171079,9.565e-05,2]
[348694924,1736722231906,-500.0,9.781e-05,2]
[348694925,1736722231915,-300.0,9.898e-05,2]
[348694926,1736722231924,-5000.0,9.899e-05,2]
[348694927,1736722231935,-1000.0,9.9e-05,2]
[348694928,1736722231945,-263.3191146,9.973e-05,2]
[348694929,1736722231954,-500.0,9.973e-05,2]
[348694930,1736722231964,-150.0,9.997e-05,2]
[348694931,1736722231975,-4271.134,9.998e-05,2]
[348694932,1736722231984,-162.009,9.998e-05,2]
[348694933,1736722231994,-598.02145705,9.998e-05,2]
[348694934,1736722232003,-500.0,9.998e-05,2]
[348694935,1736722232013,-500.0,9.998e-05,2]
[348694936,1736722232022,-1269.6446323,9.998e-05,2]
[348694937,1736722232031,-390.21,9.998e-05,2]
[348694938,1736722232041,-500.0,9.998e-05,2]
[348694939,1736722232051,-500.0,9.998e-05,2]
[348694940,1736722232061,-500.0,9.998e-05,2]
[348694941,1736722232071,-500.0,9.998e-05,2]
[348694942,1736722232082,-500.0,9.998e-05,2]
[348694943,1736722232094,-500.0,9.998e-05,2]
[348694944,1736722232104,-500.0,9.998e-05,2]
[348694945,1736722232115,-500.0,9.998e-05,2]
[348694946,1736722232124,-500.0,9.998e-05,2]
[348694947,1736722232134,-500.0,9.998e-05,2]
[348694948,1736722232143,-500.0,9.998e-05,2]
[348694949,1736722232153,-500.0,9.998e-05,2]
[348694950,1736722232163,-500.0,9.998e-05,2]
[348694951,1736722232172,-500.0,9.998e-05,2]
[348694952,1736722232182,-500.0,9.998e-05,2]
[348694953,1736722232191,-500.0,9.998e-05,2]
[348694954,1736722232201,-500.0,9.998e-05,2]
[348694955,1736722232210,-500.0,9.998e-05,2]
[348694956,1736722232220,-271.81086551,9.998e-05,2]
[348694957,1736722232233,-228.18913449,9.998e-05,2]
[348694958,1736722232244,-109.51188725,9.998e-05,2]
[348694959,1736722232255,-390.48811275,9.998e-05,2]
[348694960,1736722232264,-13.68565725,9.998e-05,2]
[348694961,1736722232290,-486.31434275,9.998e-05,2]
[348694962,1736722232300,-500.0,9.998e-05,2]
[348694963,1736722232309,-314.92751377,9.998e-05,2]
[348694975,1736722237600,-185.07248623,9.998e-05,2]
[348694976,1736722237610,-500.0,9.998e-05,2]
[348694977,1736722237619,-241.1200167,9.998e-05,2]
[348694978,1736722237718,-258.8799833,9.998e-05,2]
[348694979,1736722237729,-221.52888251,9.998e-05,2]
[348694980,1736722237821,-278.47111749,9.998e-05,2]
[348694981,1736722237830,-500.0,9.998e-05,2]
[348694982,1736722237839,-500.0,9.998e-05,2]
[348694983,1736722237849,-500.0,9.998e-05,2]
[348694984,1736722237858,-500.0,9.998e-05,2]
[348694985,1736722237867,-500.0,9.998e-05,2]
[348694986,1736722237876,-500.0,9.998e-05,2]
[348694987,1736722237885,-500.0,9.998e-05,2]
[348694988,1736722237894,-638.13,9.998e-05,2]
[348694989,1736722237902,-381.49556829,9.998e-05,2]
[348694990,1736722237911,-500.0,9.998e-05,2]
[348694991,1736722237921,-500.0,9.998e-05,2]
[348694992,1736722237930,-500.0,9.998e-05,2]
[348694993,1736722237939,-500.0,9.998e-05,2]
[348694994,1736722237947,-500.0,9.998e-05,2]
[348694995,1736722237956,-500.0,9.998e-05,2]
[348694996,1736722237966,-500.0,9.998e-05,2]
[348694997,1736722237974,-500.0,9.998e-05,2]
[348694998,1736722237983,-500.0,9.998e-05,2]
[348694999,1736722237992,-500.0,9.998e-05,2]
[348695000,1736722238001,-500.0,9.998e-05,2]
[348695001,1736722238010,-500.0,9.998e-05,2]
[348695002,1736722238020,-500.0,9.998e-05,2]
[348695003,1736722238029,-501.03177746,9.998e-05,2]
[348695004,1736722238038,-500.0,9.998e-05,2]
[348695005,1736722238047,-500.0,9.998e-05,2]
[348695006,1736722238056,-500.0,9.998e-05,2]
[348695007,1736722238066,-500.0,9.998e-05,2]
[348695008,1736722238075,-500.0,9.998e-05,2]
[348695009,1736722238084,-500.0,9.998e-05,2]
[348695011,1736722238094,-500.0,9.998e-05,2]
[348695013,1736722238103,-500.0,9.998e-05,2]
[348695015,1736722238112,-500.0,9.998e-05,2]
[348695016,1736722238121,-500.0,9.998e-05,2]
[348695018,1736722238131,-500.0,9.998e-05,2]
[348695020,1736722238140,-500.0,9.998e-05,2]
[348695023,1736722238151,-500.0,9.998e-05,2]
[348695024,1736722238160,-500.0,9.998e-05,2]
[348695027,1736722238170,-2461.13,9.998e-05,2]
[348695028,1736722238179,-500.0,9.998e-05,2]
[348695030,1736722238188,-500.61300584,9.998e-05,2]
[348695032,1736722238197,-500.0,9.998e-05,2]
[348695034,1736722238206,-500.0,9.998e-05,2]
[348695036,1736722238215,-301.59,9.998e-05,2]
[348695038,1736722238225,-500.0,9.998e-05,2]
[348695040,1736722238234,-500.0,9.998e-05,2]
[348695042,1736722238243,-500.0,9.998e-05,2]
[348695044,1736722238253,-500.0,9.998e-05,2]
[348695046,1736722238263,-500.0,9.998e-05,2]
[348695048,1736722238272,-500.0,9.998e-05,2]
[348695050,1736722238281,-500.0,9.998e-05,2]
[348695052,1736722238291,-500.0,9.998e-05,2]
[348695054,1736722238300,-500.0,9.998e-05,2]
[348695056,1736722238310,-500.0,9.998e-05,2]
[348695058,1736722238320,-500.0,9.998e-05,2]
[348695059,1736722238329,-500.0,9.998e-05,2]
[348695061,1736722238339,-506.29581956,9.998e-05,2]
[348695063,1736722238348,-500.0,9.998e-05,2]
[348695064,1736722238357,-500.0,9.998e-05,2]
[348695065,1736722238366,-500.0,9.998e-05,2]
[348695066,1736722238374,-500.0,9.998e-05,2]
[348695067,1736722238383,-503.36,9.998e-05,2]
[348695068,1736722238392,-500.0,9.998e-05,2]
[348695069,1736722238402,-545.59,9.998e-05,2]
[348695070,1736722238412,-500.0,9.998e-05,2]
[348695071,1736722238423,-500.0,9.998e-05,2]
[348695072,1736722238432,-500.0,9.998e-05,2]
[348695073,1736722238441,-500.0,9.998e-05,2]
[348695074,1736722238450,-500.0,9.998e-05,2]
[348695075,1736722238461,-500.0,9.998e-05,2]
[348695076,1736722238472,-500.0,9.998e-05,2]
[348695077,1736722238482,-500.0,9.998e-05,2]
[348695078,1736722238492,-500.0,9.998e-05,2]
[348695079,1736722238501,-500.0,9.998e-05,2]
[348695080,1736722238510,-500.0,9.998e-05,2]
[348695081,1736722238521,-584.17,9.998e-05,2]
[348695082,1736722238532,-500.0,9.998e-05,2]
[348695083,1736722238542,-565.33,9.998e-05,2]
[348695084,1736722238551,-500.0,9.998e-05,2]
[348695085,1736722238560,-586.55,9.998e-05,2]
[348695086,1736722238570,-500.0,9.998e-05,2]
[348695087,1736722238579,-500.0,9.998e-05,2]
[348695088,1736722238589,-806.27,9.998e-05,2]
[348695089,1736722238599,-500.0,9.998e-05,2]
[348695090,1736722238608,-500.0,9.998e-05,2]
[348695091,1736722238617,-500.0,9.998e-05,2]
[348695092,1736722238626,-1207.04,9.998e-05,2]
[348695093,1736722238635,-500.0,9.998e-05,2]
[348695094,1736722238648,-500.0,9.998e-05,2]
[348695095,1736722238658,-500.0,9.998e-05,2]
[348695096,1736722238667,-500.0,9.998e-05,2]
[348695097,1736722238676,-1209.68,9.998e-05,2]
[348695098,1736722238688,-500.0,9.998e-05,2]
[348695099,1736722238697,-159.78400911,9.998e-05,2]
[348695100,1736722238707,-1856.84,9.998e-05,2]
[348695101,1736722238718,-500.0,9.998e-05,2]
[348695102,1736722238727,-500.0,9.998e-05,2]
[348695103,1736722238738,-514.95,9.998e-05,2]
[348695104,1736722238747,-155.94650853,9.998e-05,2]
[348695105,1736722238756,-902.46,9.998e-05,2]
[348695106,1736722238766,-500.0,9.998e-05,2]
[348695107,1736722238775,-500.0,9.998e-05,2]
[348695108,1736722238786,-514.85,9.998e-05,2]
[348695109,1736722238796,-500.0,9.998e-05,2]
[348695110,1736722238805,-500.0,9.998e-05,2]
[348695111,1736722238814,-508.78,9.998e-05,2]
[348695112,1736722238824,-569.58,9.998e-05,2]
[348695113,1736722238835,-500.0,9.998e-05,2]
[348695114,1736722238844,-400.18975203,9.998e-05,2]
[348695115,1736722238854,-500.0,9.998e-05,2]
[348695116,1736722238864,-1388.52,9.998e-05,2]
[348695117,1736722238874,-500.0,9.998e-05,2]
[348695118,1736722238883,-500.0,9.998e-05,2]
[348695119,1736722238893,-500.0,9.998e-05,2]
[348695120,1736722238902,-500.0,9.998e-05,2]
[348695121,1736722238911,-780.72,9.998e-05,2]
[348695122,1736722238921,-500.0,9.998e-05,2]
[348695123,1736722238932,-500.0,9.998e-05,2]
[348695124,1736722238943,-500.0,9.998e-05,2]
[348695125,1736722238952,-1091.94,9.998e-05,2]
[348695126,1736722238961,-500.0,9.998e-05,2]
[348695127,1736722238971,-806.17,9.998e-05,2]
[348695128,1736722238982,-602.22,9.998e-05,2]
[348695129,1736722238991,-500.0,9.998e-05,2]
[348695130,1736722239003,-650.04,9.998e-05,2]
[348695131,1736722239011,-500.0,9.998e-05,2]
[348695132,1736722239022,-500.0,9.998e-05,2]
[348695133,1736722239031,-500.0,9.998e-05,2]
[348695134,1736722239042,-894.9,9.998e-05,2]
[348695135,1736722239053,-500.0,9.998e-05,2]
[348695136,1736722239062,-500.0,9.998e-05,2]
[348695137,1736722239072,-500.0,9.998e-05,2]
[348695138,1736722239081,-614.6,9.998e-05,2]
[348695139,1736722239091,-509.50758145,9.998e-05,2]
[348695140,1736722239100,-500.0,9.998e-05,2]
[348695141,1736722239108,-500.0,9.998e-05,2]
[348695142,1736722239118,-1074.99,9.998e-05,2]
[348695143,1736722239127,-500.0,9.998e-05,2]
[348695144,1736722239138,-500.0,9.998e-05,2]
[348695145,1736722239147,-500.0,9.998e-05,2]
[348695146,1736722239156,-500.0,9.998e-05,2]
[348695147,1736722239167,-500.0,9.998e-05,2]
[348695148,1736722239176,-500.0,9.998e-05,2]
[348695149,1736722239186,-500.0,9.998e-05,2]
[348695150,1736722239195,-850.01,9.998e-05,2]
[348695151,1736722239205,-500.0,9.998e-05,2]
[348695152,1736722239214,-637.8,9.998e-05,2]
[348695153,1736722239224,-500.0,9.998e-05,2]
[348695154,1736722239234,-2066.52244516,9.998e-05,2]
[348695155,1736722239243,-1112.74139546,9.999e-05,3]
[348695156,1736722239252,-1112.74139546,9.999e-05,3]
[348695157,1736722239262,-1112.74139543,9.999e-05,3]
[348695158,1736722239271,-1112.74139546,9.999e-05,3]
[348695159,1736722239280,-1112.74139546,9.999e-05,3]
[348695160,1736722239290,-1112.74139546,9.999e-05,3]
[348695161,1736722239299,-1112.74139546,9.999e-05,3]
[348695162,1736722239308,-1112.74139546,9.999e-05,3]
[348695163,1736722239320,-1112.74139546,9.999e-05,3]
[348695164,1736722239331,-1112.74139546,9.999e-05,3]
[348695165,1736722239342,-1112.74139546,9.999e-05,3]
[348695166,1736722239352,-1112.74139546,9.999e-05,3]
[348695167,1736722239363,-268.69627426,9.999e-05,2]
[348695168,1736722239375,-500.0,9.999e-05,2]
[348695169,1736722239384,-500.0,9.999e-05,2]
[348695170,1736722239393,-500.0,9.999e-05,2]
[348695171,1736722239403,-500.0,9.999e-05,2]
[348695172,1736722239412,-308.08453241,9.999e-05,2]
[348695173,1736722239421,-500.0,9.999e-05,2]
[348695174,1736722239431,-202.4833196,9.999e-05,2]
[348695175,1736722239440,-500.0,9.999e-05,2]
[348695176,1736722239450,-500.0,9.999e-05,2]
[348695178,1736722239459,-542.77,9.999e-05,2]
[348695179,1736722239468,-500.0,9.999e-05,2]
[348695181,1736722239477,-500.0,9.999e-05,2]
[348695182,1736722239486,-500.0,9.999e-05,2]
[348695183,1736722239496,-500.0,9.999e-05,2]
[348695184,1736722239507,-500.0,9.999e-05,2]
[348695185,1736722239516,-500.0,9.999e-05,2]
[348695186,1736722239526,-500.0,9.999e-05,2]
[348695189,1736722239737,-500.0,9.999e-05,2]
[348695190,1736722239746,-500.0,9.999e-05,2]
[348695191,1736722239755,-578.10602452,9.999e-05,2]
[348695192,1736722239765,-508.20928554,9.999e-05,2]
[348695193,1736722239774,-500.0,9.999e-05,2]
[348695194,1736722239784,-500.0,9.999e-05,2]
[348695195,1736722239793,-500.0,9.999e-05,2]
[348695196,1736722239802,-500.0,9.999e-05,2]
[348695197,1736722239812,-500.0,9.999e-05,2]
[348695198,1736722239821,-500.0,9.999e-05,2]
[348695199,1736722239831,-500.0,9.999e-05,2]
[348695200,1736722239841,-500.0,9.999e-05,2]
[348695201,1736722239852,-500.0,9.999e-05,2]
[348695202,1736722239862,-500.0,9.999e-05,2]
[348695203,1736722239872,-500.0,9.999e-05,2]
[348695204,1736722239884,-500.0,9.999e-05,2]
[348695205,1736722239894,-500.0,9.999e-05,2]
[348695206,1736722239905,-500.0,9.999e-05,2]
[348695207,1736722239915,-390.544099,9.999e-05,2]
[348695208,1736722239926,-257.67071372,9.999e-05,2]
[348695209,1736722239939,-500.0,9.999e-05,2]
[348695210,1736722239948,-500.0,9.999e-05,2]
[348695211,1736722239958,-500.0,9.999e-05,2]
[348695212,1736722239969,-211.07718581,9.999e-05,2]
[348695213,1736722239979,-500.0,9.999e-05,2]
[348695214,1736722239989,-336.573048,9.999e-05,2]
[348695215,1736722240000,-500.0,9.999e-05,2]
[348695216,1736722240011,-500.0,9.999e-05,2]
[348695217,1736722240021,-500.0,9.999e-05,2]
[348695218,1736722240031,-500.0,9.999e-05,2]
[348695219,1736722240041,-500.0,9.999e-05,2]
[348695220,1736722240052,-500.0,9.999e-05,2]
[348695221,1736722240062,-500.0,9.999e-05,2]
[348695222,1736722240072,-500.0,9.999e-05,2]
[348695223,1736722240082,-504.19,9.999e-05,2]
[348695224,1736722240092,-500.0,9.999e-05,2]
[348695225,1736722240103,-500.0,9.999e-05,2]
[348695226,1736722240113,-500.0,9.999e-05,2]
[348695227,1736722240123,-500.0,9.999e-05,2]
[348695228,1736722240133,-500.0,9.999e-05,2]
[348695229,1736722240143,-500.0,9.999e-05,2]
[348695230,1736722240154,-500.0,9.999e-05,2]
[348695231,1736722240163,-500.0,9.999e-05,2]
[348695232,1736722240172,-500.0,9.999e-05,2]
[348695233,1736722240181,-500.0,9.999e-05,2]
[348695234,1736722240190,-500.0,9.999e-05,2]
[348695235,1736722240200,-500.0,9.999e-05,2]
[348695236,1736722240209,-500.0,9.999e-05,2]
[348695237,1736722240218,-500.0,9.999e-05,2]
[348695238,1736722240227,-500.0,9.999e-05,2]
[348695239,1736722240236,-500.0,9.999e-05,2]
[348695240,1736722240245,-500.0,9.999e-05,2]
[348695241,1736722240255,-187.35127176,9.999e-05,2]
[348695242,1736722240264,-500.0,9.999e-05,2]
[348695244,1736722240272,-500.0,9.999e-05,2]
[348695245,1736722240283,-500.0,9.999e-05,2]
[348695246,1736722240292,-500.0,9.999e-05,2]
[348695247,1736722240302,-500.0,9.999e-05,2]
[348695248,1736722240311,-500.0,9.999e-05,2]
[348695249,1736722240320,-598.30490611,9.999e-05,2]
[348695250,1736722240329,-500.0,9.999e-05,2]
[348695251,1736722240338,-500.0,9.999e-05,2]
[348695252,1736722240347,-500.0,9.999e-05,2]
[348695253,1736722240357,-500.0,9.999e-05,2]
[348695254,1736722240367,-500.0,9.999e-05,2]
[348695255,1736722240377,-500.0,9.999e-05,2]
[348695256,1736722240386,-500.0,9.999e-05,2]
[348695257,1736722240396,-500.0,9.999e-05,2]
[348695258,1736722240404,-500.0,9.999e-05,2]
[348695259,1736722240413,-500.0,9.999e-05,2]
[348695260,1736722240423,-500.0,9.999e-05,2]
[348695261,1736722240432,-500.0,9.999e-05,2]
[348695262,1736722240442,-500.0,9.999e-05,2]
[348695263,1736722240451,-500.0,9.999e-05,2]
[348695264,1736722240460,-500.0,9.999e-05,2]
[348695265,1736722240470,-500.0,9.999e-05,2]
[348695266,1736722240479,-500.0,9.999e-05,2]
[348695267,1736722240489,-500.0,9.999e-05,2]
[348695268,1736722240498,-500.0,9.999e-05,2]
[348695269,1736722240507,-500.0,9.999e-05,2]
[348695270,1736722240516,-500.0,9.999e-05,2]
[348695271,1736722240525,-500.0,9.999e-05,2]
[348695272,1736722240536,-500.0,9.999e-05,2]
[348695273,1736722240545,-204.77,9.999e-05,2]
[348695274,1736722240554,-500.0,9.999e-05,2]
[348695275,1736722240564,-500.0,9.999e-05,2]
[348695276,1736722240574,-500.0,9.999e-05,2]
[348695277,1736722240583,-500.0,9.999e-05,2]
[348695278,1736722240592,-500.0,9.999e-05,2]
[348695279,1736722240602,-500.0,9.999e-05,2]
[348695280,1736722240612,-500.0,9.999e-05,2]
[348695281,1736722240621,-500.0,9.999e-05,2]
[348695282,1736722240630,-500.0,9.999e-05,2]
[348695283,1736722240641,-500.0,9.999e-05,2]
[348695284,1736722240653,-500.0,9.999e-05,2]
[348695285,1736722240662,-500.0,9.999e-05,2]
[348695286,1736722240672,-500.0,9.999e-05,2]
[348695287,1736722240681,-500.0,9.999e-05,2]
[348695288,1736722240691,-500.0,9.999e-05,2]
[348695289,1736722240700,-500.0,9.999e-05,2]
[348695290,1736722240709,-500.0,9.999e-05,2]
[348695291,1736722240721,-500.0,9.999e-05,2]
[348695292,1736722240730,-500.0,9.999e-05,2]
[348695293,1736722240739,-500.0,9.999e-05,2]
[348695294,1736722240749,-231.31198979,9.999e-05,2]
[348695295,1736722240758,-500.0,9.999e-05,2]
[348695296,1736722240768,-500.0,9.999e-05,2]
[348695297,1736722240777,-500.0,9.999e-05,2]
[348695298,1736722240786,-500.0,9.999e-05,2]
[348695299,1736722240795,-500.0,9.999e-05,2]
[348695300,1736722240804,-500.0,9.999e-05,2]
[348695301,1736722240814,-500.0,9.999e-05,2]
[348695302,1736722240823,-500.0,9.999e-05,2]
[348695303,1736722240832,-500.0,9.999e-05,2]
[348695304,1736722240841,-285.31,9.999e-05,2]
[348695305,1736722240851,-500.0,9.999e-05,2]
[348695306,1736722240860,-500.0,9.999e-05,2]
[348695307,1736722240869,-500.0,9.999e-05,2]
[348695308,1736722240878,-500.0,9.999e-05,2]
[348695309,1736722240887,-500.0,9.999e-05,2]